Cogmind - Beta 16 @@@ ROGUE MODE // 2025.10.25 @ 14:20:25 Player: Mxykikker Result: Self-destructed Performance ------------- Evolutions (5) 2500 Regions Visited (5) 1000 Robots Destroyed (28) 140 Value Destroyed (755) 755 Prototype IDs (9) 180 Alien Tech Used (0) 0 Bonus (800) 800 TOTAL SCORE: 5375 Bonus ------- Registered with UFD 300 Met Optimus in HQ 500 Cogmind --------- Core Integrity 725/1000 Matter 48/300 Energy 150/150 System Corruption 5% Temperature Cool (0) Movement Flying (120) Ox1 Location -5/Upper Caves Parts ------- > --- POWER (3) -------- Micro Fission Core > --- PROPULSION (4) --- Nuclear Pulse Array > --- UTILITY (6) ------ Advanced ECM Suite Point Defense System A0-MCA's Component Scanner > --- WEAPON (4) ------- Phasing Sabre > --- INVENTORY (5) ---- Layered Medium Armor Plating Peak State ------------ > --- POWER ------------ Micro Fission Core > --- PROPULSION ------- Xenon Bombardment Thruster Xenon Bombardment Thruster Nuclear Pulse Array > --- UTILITY ---------- Advanced ECM Suite Phase Shifter Point Defense System A0-MCA's Component Scanner Scrapoid Pod > --- WEAPON ----------- Wave Gun Phasing Sabre > --- INVENTORY -------- (None) [Rating: 74] Favorites ----------- Power Improved Deuterium Engine Engine Improved Deuterium Engine Power Core Micro Fission Core Propulsion Compact Wheel Wheel Compact Wheel Flight Unit Xenon Bombardment Thruster Utility Small Storage Unit Device Scrapoid Pod Storage Small Storage Unit Processor Targeting Computer Protection Improved Medium Armor Plating Weapon EMP Blaster Energy Gun Subdweller Laser Energy Cannon Heavy Ion Cannon Ballistic Gun Overtuned Barrage Gun Launcher EMP Blaster Slashing Weapon Phasing Sabre Special Melee Weapon Datajack Build | -11 -10 -10 -7 -5 -5 ------- Run | Yrd Mat Sub Scr Fac Upp Slots Evolved 10 | . . . . 10 . Power 2 | . . . . 2 . Propulsion 2 | . . . . 2 . Utility 4 | . . . . 4 . Weapon 2 | . . . . 2 . Parts Attached 40 | 6 6 4 9 10 5 Power 5 | 1 1 1 1 1 . Engine 4 | 1 1 1 1 . . Core 1 | . . . . 1 . Reactor . | . . . . . . Propulsion 12 | 2 1 . 3 5 1 Treads . | . . . . . . Leg . | . . . . . . Wheel 7 | 2 1 . 3 1 . Hover . | . . . . . . Flight 5 | . . . . 4 1 Utility 9 | 1 1 . 2 3 2 Device 5 | . . . 1 2 2 Storage 1 | 1 . . . . . Processor 2 | . 1 . . 1 . Hackware . | . . . . . . Protection 1 | . . . 1 . . Artifact . | . . . . . . Weapon 14 | 2 3 3 3 1 2 Energy Gun 3 | 1 . 1 . . 1 Energy Cannon 3 | . . . 2 1 . Ballistic Gun 3 | 1 . 1 1 . . Ballistic Cannon . | . . . . . . Launcher 3 | . 2 1 . . . Special Weapon . | . . . . . . Impact Weapon . | . . . . . . Slashing Weapon 1 | . . . . . 1 Piercing Weapon . | . . . . . . Special Melee Weapon 1 | . 1 . . . . Unidentified Prototypes . | . . . . . . Parts Lost 14 | . . 5 . 5 4 Power 1 | . . . . 1 . Propulsion 5 | . . 2 . 1 2 Utility 3 | . . . . 1 2 Weapon 5 | . . 3 . 2 . Highest Loss Streak 4 | . . 3 . 4 4 To Critical Strikes . | . . . . . . Average Backups 5 | 1 5 7 6 2 1 Power . | . . . . . . Propulsion . | . . 1 . 1 . Utility 1 | . . 2 2 1 1 Weapon 2 | . 2 2 2 . . Tool/Special . | . . . . . . Unused Backups 15 | 1 2 2 8 1 1 Power 2 | 1 . . 1 . . Propulsion 2 | . . 1 1 . . Utility 6 | . . 1 3 1 1 Weapon 5 | . 2 . 3 . . Tool/Special . | . . . . . . Average Slot Usage (%) 86 | . 96 94 94 41 45 Engine 11 | . 14 14 14 1 . Wheel 21 | . 28 23 23 3 . Flight 1 | . . . . 9 13 Device 2 | . . . . 14 17 Storage 11 | . 14 14 13 . . Processor 11 | . 11 14 13 4 5 Energy Gun 3 | . 1 5 4 . . Energy Cannon 4 | . . . 9 1 . Ballistic Gun 7 | . 1 4 14 . . Launcher 8 | . 25 17 . . . Peak Build Rating 74 | 6 11 12 27 59 74 Average Rating 19 | 4 9 10 17 49 58 On Entrance 15 | . 6 10 11 27 37 Avg Prop Armor Cover (%) 6 | . . . 6 . . Naked Turns . | . . . . . . Heaviest Build 35 | 12 20 20 26 35 28 Greatest Support 44 | 32 32 26 26 44 25 Greatest Overweight (x) 8 | . . 1 8 3 1 Average Overweight (x) . | . . . . . . Largest Inventory Capacity 8 | 8 8 8 8 5 5 Average Capacity 7 | 5 8 8 7 5 5 Most Carried 8 | 3 6 8 8 5 5 Average Carried 6 | 1 5 7 6 3 1 Final Capacity 8 | 8 8 8 5 5 5 Final Carried 8 | 1 6 8 5 5 1 Scrap Suit Usage (%) 6 | . . . 3 41 . Parts Cannibalized 1 | . . . . 1 . Class Distribution -------------------- 82% | Mutant 12% | Derelict-Mutant 3% | Derelict-Scrapper Dominant Class ---------------- Mutant | -10/Materials Mutant | -10/Subcaves Mutant | -7/Scraptown Mutant | -5/Factory Mutant | -5/Upper Caves Resources | -11 -10 -10 -7 -5 -5 ----------- Run | Yrd Mat Sub Scr Fac Upp Matter Collected 867 | 227 213 200 50 60 117 Remotely . | . . . . . . Salvage Created 1068 | . 503 435 . 69 61 Parts 58 | . 26 27 . 2 3 Haulers Intercepted 2 | . 2 . . . . Recyclers Shooed . | . . . . . . Parts Field Recycled . | . . . . . . Retrieved Matter . | . . . . . . Parts Self-Destructed 12 | . . 11 . . 1 Prevented 7 | . . 7 . . . Parts Restored . | . . . . . . Kills | -11 -10 -10 -7 -5 -5 ------- Run | Yrd Mat Sub Scr Fac Upp Combat Hostiles Destroyed 20 | . 7 9 . 3 1 Melee 1 | . . . . . 1 Guns 4 | . . 2 . 2 . Cannons 1 | . . . . 1 . AOE 14 | . 7 7 . . . Classes Destroyed 10 | . 6 3 . . 1 Worker 1 | . 1 . . . . Hauler 2 | . 2 . . . . Operator 1 | . 1 . . . . Turret 2 | . . 2 . . . Watcher 2 | . 2 . . . . Swarmer 9 | . 3 3 . 3 . Grunt 5 | . 4 1 . . . Duelist 1 | . . . . . 1 Sentry 1 | . . 1 . . . Subdweller 4 | . . 4 . . . Best Kill Streak 5 | . 5 2 . 3 1 Combat Bots Only 3 | . 3 2 . 3 1 Max Kills in Single Turn 2 | . 2 2 . 1 1 Gunslinging . | . . . . . . Exploded 2 | . 2 2 . . . Melee 1 | . . . . . 1 Uniques/NPCs Destroyed . | . . . . . . Combat | -11 -10 -10 -7 -5 -5 -------- Run | Yrd Mat Sub Scr Fac Upp Hostile Shots Fired 207 | . 6 78 . 111 12 Missed 79 | . 3 34 . 38 4 Hits 128 | . 3 44 . 73 8 Melee 3 | . . . . . 3 Projectile 125 | . 3 44 . 73 5 Critical Strikes 2 | . . 1 . . 1 Damage Taken 2472 | . 42 682 . 1543 205 Core 443 | . . 168 . 257 18 Absorbed by Shields . | . . . . . . Regen/Repaired (Parts) 5 | . . . . 5 . Core Remaining (%) 66 | 100 . . 32 . . Volleys Fired 61 | . 15 29 . 17 . Largest 2 | . 2 2 . 2 . Hottest 111 | . 66 93 . 111 . Shots Fired 108 | . 30 50 . 28 . Gun 28 | . . 17 . 11 . Cannon 17 | . . . . 17 . Launcher 63 | . 30 33 . . . Special . | . . . . . . Kinetic 18 | . . 7 . 11 . Thermal 20 | . . 10 . 10 . Explosive . | . . . . . . Electromagnetic 70 | . 30 33 . 7 . Robot Hit Streak 16 | . 6 16 . 5 . Robot Miss Streak 4 | . 2 3 . 4 . Penetration Max . | . . . . . . Secondary Targets 1 | . . 1 . . . Max Gunslinging Chain 1 | . . 1 . . . Shots Hit Robots 66 | . 15 33 . 14 4 Core Hits 43 | . 13 20 . 8 2 Critical Kills . | . . . . . . Critical Parts Destroyed . | . . . . . . Critical Strikes . | . . . . . . Melee Attacks 6 | . . . . . 6 Impact . | . . . . . . Slashing 6 | . . . . . 6 Piercing . | . . . . . . Sneak Attacks . | . . . . . . Combat Hostiles . | . . . . . . Follow-up Attacks . | . . . . . . Damage Inflicted 2145 | . 679 1053 . 276 137 Guns 377 | . . 289 . 88 . Cannons 177 | . . . . 177 . Explosions 1443 | . 679 764 . . . Melee 137 | . . . . . 137 Ramming 11 | . . . . 11 . Kinetic 197 | . . 109 . 88 . Thermal 396 | . . 258 . 138 . Explosive . | . . . . . . Electromagnetic 1404 | . 679 686 . 39 . Impact . | . . . . . . Slashing 137 | . . . . . 137 Piercing . | . . . . . . Highest Corruption 5 | . . . . 5 5 Average Corruption 4 | . . . . 4 5 Corruption Purged . | . . . . . . Corruption Blocked . | . . . . . . Effects 13 | . . . . 11 2 Message Errors 4 | . . . . 4 . Matter Fused 1 | . . . . . 1 Heat Flow Errors 2 | . . . . 2 . Energy Discharges 2 | . . . . 1 1 Parts Rejected 1 | . . . . 1 . Data Loss (minor) 2 | . . . . 2 . Data Loss (major) 1 | . . . . 1 . Overload Shots . | . . . . . . Overflow Damage 23 | . 21 2 . . . Projectiles . | . . . . . . Explosions 23 | . 21 2 . . . Melee . | . . . . . . Knockbacks . | . . . . . . Impact . | . . . . . . Kinetic . | . . . . . . Secondary . | . . . . . . Self-Inflicted Damage 71 | . . 66 . 5 . Shots 4 | . . 4 . . . Rammed 2 | . . . . 2 . Targets Rammed 2 | . . . . 2 . Kicked . | . . . . . . Crushed . | . . . . . . Highest Temperature 102 | . 37 32 . 102 . Average Temperature 26 | . 11 15 . 42 . Received Heat Transfer 438 | . 27 174 . 192 45 Siege Activations . | . . . . . . Martial Activations . | . . . . . . Shielding Activations . | . . . . . . Robots Disrupted 1 | . . 1 . . . Combat Hostiles 1 | . . 1 . . . Robots Corrupted . | . . . . . . Combat Hostiles . | . . . . . . Parts Fried 5 | . 4 1 . . . Impact Corruptions . | . . . . . . Robots Melted . | . . . . . . Combat Hostiles . | . . . . . . Parts Melted . | . . . . . . Heat Transferred 510 | . . 325 . 185 . Parts Sabotaged . | . . . . . . Parts Stolen . | . . . . . . Parts Stripped . | . . . . . . Power Chain Reactions 9 | . 6 3 . . . Alert | -11 -10 -10 -7 -5 -5 ------- Run | Yrd Mat Sub Scr Fac Upp Maximum Alert Level 1 | . 1 . . . . Low Security (%) 98 | 100 97 . . 100 . Level 1 1 | . 2 . . . . Level 2 . | . . . . . . Level 3 . | . . . . . . Level 4 . | . . . . . . Level 5 . | . . . . . . High Security . | . . . . . . Max Security . | . . . . . . Peak Influence 203 | . 203 . . 75 . Initial . | . . . . . . Average 58 | . 108 . . 8 . Influence Increases 1151 | . 311 680 . 130 30 Destroy 0b10 Robot/C 360 | . 140 140 . 60 20 Destroy 0b10 Robot/NC 30 | . 30 . . . . Destroy Leader 58 | . 38 . . 10 10 Disable Machine 75 | . 75 . . . . Destroy Structure 13 | . 13 . . . . Partial Spotted 15 | . . . . 15 . Lose Combat Pursuer 600 | . 15 540 . 45 . Influence Decreases 1141 | . 244 459 288 130 20 Entered New Map 321 | . . 33 288 . . Time Decay 710 | . 244 376 . 90 . Lost Part 110 | . . 50 . 40 20 Squads Dispatched 5 | . . . . 5 . Investigation 3 | . . . . 3 . Extermination 1 | . . . . 1 . Reinforcement 1 | . . . . 1 . Assault . | . . . . . . Garrison . | . . . . . . Intercept . | . . . . . . Searches Triggered . | . . . . . . Construction Impeded . | . . . . . . Haulers Reinforced . | . . . . . . Active Scanning Responses . | . . . . . . Cargo Convoy Interrupts . | . . . . . . Stealth | -11 -10 -10 -7 -5 -5 --------- Run | Yrd Mat Sub Scr Fac Upp Distress Signals 3 | . 1 . . 2 . Communications Jammed . | . . . . . . Distress Signals . | . . . . . . Times Spotted 64 | . 10 34 . 17 3 Peak Tracking Total 8 | . 4 6 . 8 3 Tactical Retreats 8 | . 1 4 . 3 . Traps | -11 -10 -10 -7 -5 -5 ------- Run | Yrd Mat Sub Scr Fac Upp Traps Triggered 6 | . . 6 . . . Indirectly 1 | . . 1 . . . Trap Hack Attempts . | . . . . . . Triggered . | . . . . . . Disarmed . | . . . . . . Reprogrammed . | . . . . . . Reused . | . . . . . . Traps Extracted . | . . . . . . Installed . | . . . . . . Triggered . | . . . . . . Machines | -11 -10 -10 -7 -5 -5 ---------- Run | Yrd Mat Sub Scr Fac Upp Machines Disabled 9 | . 5 4 . . . Max in Single Turn 2 | . 2 2 . . . Machines Repaired . | . . . . . . Machines Dismantled . | . . . . . . Machines Sabotaged . | . . . . . . Overloaded Fab Kills . | . . . . . . Hacking | -11 -10 -10 -7 -5 -5 --------- Run | Yrd Mat Sub Scr Fac Upp Machines Accessed 11 | . 2 . 4 5 . Terminals 2 | . 1 . . 1 . Fabricators . | . . . . . . Repair Stations . | . . . . . . Recycling Units 4 | . 1 . . 3 . Scanalyzers 1 | . . . . 1 . Garrison Access . | . . . . . . Total Hacks 20 | . 3 . 7 10 . Successful 12 | . 1 . 7 4 . Failed 8 | . 2 . . 6 . Catastrophic . | . . . . . . Database Lockouts . | . . . . . . Manual 8 | . 2 . . 6 . Terminals 4 | . 2 . . 2 . Fabricators . | . . . . . . Repair Stations . | . . . . . . Recycling Units 6 | . 1 . . 5 . Scanalyzers 3 | . . . . 3 . Garrison Access . | . . . . . . Terminal Hacks 8 | . . . 7 1 . Record 6 | . . . 6 . . Emergency Access Points 1 | . . . . 1 . Proto ID Catalog 1 | . . . 1 . . Fabricator Hacks . | . . . . . . Repair Station Hacks . | . . . . . . Recycling Unit Hacks . | . . . . . . Scanalyzer . | . . . . . . Garrison Access Hacks . | . . . . . . Unauthorized Hacks 3 | . . . . 3 . Terminals . | . . . . . . Fabricators . | . . . . . . Repair Stations . | . . . . . . Recycling Units 3 | . . . . 3 . Fedlink 3 | . . . . 3 . Scanalyzers . | . . . . . . Garrison Access . | . . . . . . Data Cores Recovered . | . . . . . . Used . | . . . . . . Hacking Detections 5 | . 2 . . 3 . Full Trace Events . | . . . . . . Feedback Events . | . . . . . . Feedback Blocked . | . . . . . . Robot Schematics Acquired . | . . . . . . Robots Built . | . . . . . . Authchips . | . . . . . . Time . | . . . . . . Total Robot Build Rating . | . . . . . . Part Schematics Acquired . | . . . . . . Parts Built . | . . . . . . Authchips . | . . . . . . Time . | . . . . . . Total Part Build Rating . | . . . . . . Part Studies Acquired . | . . . . . . Parts Repaired . | . . . . . . Time . | . . . . . . Parts Recycled . | . . . . . . Recycled Matter . | . . . . . . Retrieved Matter . | . . . . . . Retrieved Components . | . . . . . . Parts Scanalyzed . | . . . . . . Part Schematics Acquired . | . . . . . . Parts Damaged . | . . . . . . Bothacking | -11 -10 -10 -7 -5 -5 ------------ Run | Yrd Mat Sub Scr Fac Upp Used RIF Installer . | . . . . . . Robots Hacked . | . . . . . . Non-combat . | . . . . . . Combat . | . . . . . . Robot Hacks Applied . | . . . . . . Relay Couplers Released . | . . . . . . Fabnet Peak Effective % . | . . . . . . Robots Rewired . | . . . . . . Allies Hacked . | . . . . . . Hacks Repelled . | . . . . . . Allies | -11 -10 -10 -7 -5 -5 -------- Run | Yrd Mat Sub Scr Fac Upp Total Allies . | . . . . . . Largest Group . | . . . . . . Highest-Rated Group . | . . . . . . Highest-Rated Ally . | . . . . . . Total Orders . | . . . . . . Ally Attacks . | . . . . . . Total Damage . | . . . . . . Kills . | . . . . . . Allies Corrupted . | . . . . . . Allies Melted . | . . . . . . Intel | -11 -10 -10 -7 -5 -5 ------- Run | Yrd Mat Sub Scr Fac Upp Active Infowar (turns) 3 | . . . . . 3 ECM 3 | . . . . . 3 Robot Analysis Total . | . . . . . . Derelict Logs Recovered 3 | . . . 3 . . Drone Launches . | . . . . . . Drone Recoveries . | . . . . . . Exploration | -11 -10 -10 -7 -5 -5 ------------- Run | Yrd Mat Sub Scr Fac Upp Turns Passed 4059 | 97 651 923 1774 538 76 Spaces Moved 3581 | 86 364 848 1611 549 123 Core 54 | 6 . . 47 1 . Treads . | . . . . . . Legs . | . . . . . . Wheels 2937 | 80 364 848 1564 81 . Hover . | . . . . . . Flight 590 | . . . . 467 123 Fastest Speed 31 | 50 90 90 80 31 34 Average Speed 97 | 96 95 96 107 83 36 Slowest Speed 450 | 100 100 115 450 200 120 Overloaded Moves . | . . . . . . Propulsion Burnouts . | . . . . . . Robots Hopped 1 | . . . . . 1 Potential Cave-ins . | . . . . . . Cave-ins Triggered . | . . . . . . Exploration Rate (%) 40 | 6 60 37 90 20 29 Regions Visited 5 Branch Regions 3 Pre-discovered Areas 3 | . . . 2 1 . Known Exits Taken . | . . . . . . Unknown Exits Taken 5 | 1 1 1 1 1 . Scrap Searched 9 | . . . 7 . 2 Spaces Dug . | . . . . . . Terrain Destroyed 18 | . 14 4 . . . Melee . | . . . . . . Projectile . | . . . . . . AOE 18 | . 14 4 . . . Terrain Rammed . | . . . . . . Walls Destroyed . | . . . . . . Machines Disabled . | . . . . . . Actions | -11 -10 -10 -7 -5 -5 --------- Run | Yrd Mat Sub Scr Fac Upp Total 4057 | 100 637 898 1666 612 144 Wait 266 | . 235 . 12 14 5 Move 3574 | 85 363 847 1610 548 121 Hop 1 | . . . . . 1 Pick Up 58 | 8 11 11 13 12 3 Fast Attach 1 | . . . 1 . . Attach 32 | 6 3 4 3 10 6 Detach 9 | . 2 . 3 3 1 Swap 11 | . 3 2 6 . . Drop 35 | 1 5 5 17 6 1 Fire 61 | . 15 29 . 17 . Melee 6 | . . . . . 6 Ram 2 | . . . . 2 . Kick . | . . . . . . Crush . | . . . . . . Escape Stasis . | . . . . . . Rewire 1 | . . . 1 . . Trap . | . . . . . . Miscellaneous . | . . . . . . Route ------- -11/Scrapyard -10/Materials (discovered 3 exits: [*Mat] / [*Min] / [*Sub]) -10/Subcaves (discovered 2 exits: [*Rec] / *Scr) -7/Scraptown -5/Factory (discovered 2 exits: [*Fac] / [*Upp]) -5/Upper Caves History --------- Turn | Location | Event 17 | -11/Scrapyard | Discovered new exit (range 16) 98 | -11/Scrapyard | Entered Materials 312 | -10/Materials | Build established: Mutant 348 | -10/Materials | Discovered new exit (range 11) 433 | -10/Materials | Discovered new exit (range 16) 726 | -10/Materials | Discovered new exit (range 10) 749 | -10/Materials | Entered Subcaves 750 | -10/Subcaves | Approached by a straggling Scientist 922 | -10/Subcaves | Scientist uncovered a shortcut to Scraptown 929 | -10/Subcaves | Discovered new exit (range 14) 1383 | -10/Subcaves | Core integrity fell below 50% 1420 | -10/Subcaves | Lost 3 parts (2n1w) 1672 | -10/Subcaves | Entered Scraptown 1875 | -7/Scraptown | Heard Great Nut preacher, LISTEN AND RECITE! 1882 | -7/Scraptown | Visited Fellowship of the Rings 1926 | -7/Scraptown | Visited UFD Registry 1934 | -7/Scraptown | Visited Bundlers 2006 | -7/Scraptown | Visited CPS Storage 2028 | -7/Scraptown | Visited Shadow of the Wyrm 2043 | -7/Scraptown | Visited Symbiants 2084 | -7/Scraptown | Scanned Subdweller tech in exchange for log data 2088 | -7/Scraptown | Learned location of Quarantine (-3) 2089 | -7/Scraptown | Learned Research emergency access door positions 2090 | -7/Scraptown | Learned location of Warlord (-5) 2350 | -7/Scraptown | Registered with UFD as "Beammind" 2383 | -7/Scraptown | Visited SPCMW 2457 | -7/Scraptown | Visited Spacefarers 2535 | -7/Scraptown | Visited A0-MCA Data Center 2541 | -7/Scraptown | Given an A- rating by A0-MCA 2547 | -7/Scraptown | Found A0-MCA's Component Scanner 2575 | -7/Scraptown | Visited Chapter 10 2602 | -7/Scraptown | Received an X-ray algorithm 2613 | -7/Scraptown | Visited Curators Association 2789 | -7/Scraptown | Visited Research Penetration Think Tank 2814 | -7/Scraptown | Visited Science Testing Area 2835 | -7/Scraptown | Visited Scrapoid Pod Storage 2842 | -7/Scraptown | Found Scrapoid Pod 2864 | -7/Scraptown | Visited DA-N13 Charitable Foundation 2883 | -7/Scraptown | Found DCF Scrap (30 items) 2930 | -7/Scraptown | Visited LU-1G1's Boring Crew 3001 | -7/Scraptown | Visited Science Guys 3184 | -7/Scraptown | Met Optimus 3184 | -7/Scraptown | Accepted into 0bPrime 3185 | -7/Scraptown | Build established: Derelict-Mutant 3391 | -7/Scraptown | Found Scrap Suit 3423 | -7/Scraptown | Civil war broke out across Scraptown 3443 | -7/Scraptown | Discovered new exit (range 3) 3446 | -7/Scraptown | Entered Factory 3446 | -5/Factory | Evolved 10 slots: Power x2, Propulsion x2, Utility x4, Weapon x2 3593 | -5/Factory | Lost 4 parts (1p1n2w) 3741 | -5/Factory | Loaded intel: 8 recycling unit locations 3842 | -5/Factory | Discovered new exit (range 9) 3895 | -5/Factory | Learned location of Protoforge (-3) 3981 | -5/Factory | Discovered new exit (range 7) 3984 | -5/Factory | Entered Upper Caves 4016 | -5/Upper Caves | Build established: Mutant 4060 | -5/Upper Caves | Self-destructed Last Messages --------------- 03994_ Acquired Wave Gun. 04002_ 67-XMN(k) breaks down the debris. 04007_ J7-9ZF(k) breaks down the debris. 04018_ Searching scrap... 04018_ Found Lyr. Medium Armor Plating. 04018_ Found Phasing Sabre. 04018_ Found 59 Matter. 04019_ Acquired 59 matter. 04020_ Acquired Phasing Sabre. 04022_ System corrupted: Matter fused (-9). 04025_ Dropped Wave Gun. 04026_ Acquired Lyr. Medium Armor Plating. 04044_ Xenon Bombardment Thruster destroyed. 04049_ L-41 Fighter destroyed. 04051_ System corrupted: Energy discharge (-58). 04053_ Phase Shifter destroyed. 04055_ Scrapoid Pod destroyed. 04056_ Carbon-fiber Leg fries itself beyond repair. Map ----- +----------------------------------------------------+ | ?????????????????????????????????????????????????? | | ?????????????????????????????????????????????????? | | ?????????????????????????????????????????????????? | | ?????????????????????????????????????????????????? | | ?????????????????????????????????????????????????? | | ?????????????????????????????????????????????????? | | ?????????????????????????????????????????????????? | | ?????????????????????????????????????????????????? | | ?????????????????????????????????????????????????? | | ?????????????????????????????????????????????????? | | ????????????????????????? ???????????????????????? | | ????????????????????????? ???????????????????????? | | ????????????????????????? ???????????????????????? | | ????????????????????????? ???????????????????????? | | ????????????????????????#S???????????????????????? | | ???????????????????????? ???????????????????????? | | ???????????????????????? ##?????????????????????? | | ???????????????????????? ?????????????????????? | | ???????????????????????? % ?????????????????????? | | ???????????????????????? ??????????????????????? | | ????????????????????????# ??????????????????????? | | ????????????????????????# ??????????????????????? | | ????????????????????????#g%??????????????????????? | | ????????????????????????# #????????###???????????? | | ????????????????????????#g#???????# #???????????? | | ???????????????????????##@#?????## #???????????? | | ??????????????????????## ##??? #???????????? | | ???????????? ###### !%!#??? ## ??????? | | ??????????? $ S #### ??????? | | ??????????? #?????????????? | | ??????????? ##### # ##?????????????? | | ????????????????????## ###### ## #??????????????? | | ?????????????????????##?#### #???#??????????????? | | ???????????????????????## #??????????????????? | | ??????????????????????## ##??????????????????? | | ?????????????????????## #???????????????????? | | ????????????###?????## ##???????????????????? | | ????????????# #????# ##???????????????????? | | ???????????## ##### ##??????????????????? | | ???????????# # #??????????????????? | | ??????????## """ ##?????????#????????? | | ??????????# """"" #???????#?# ????????? | | ??????????# """"" # ####?????? ## ?????????? | | ?????????## " " #### ##????????? ??????????? | | ?????????# """ """ #??# ????? ? ??????????? | | ??????????# """ """ #??# ??? ? ???????????? | | ???????????#""" """ ######### ????????????? | | ???????????# # ##???? ?????????????? | | ??????????## # #????? ??????????????? | | ?????????## ## #?????# #??????????????? | +----------------------------------------------------+ Best States ------------- Heat Dissipation 40 Energy Generation 16 Energy Capacity 290 Matter Stores 300 Matter Capacity 300 Sight Range 16 Terrain Scan Density 10 Point Defense Rating 80 Phase Shifting 5 Evasion (%) 68 Targeting Accuracy 5 Item Schematics ----------------- None Robot Schematics ------------------ None Fabricated ------------ Nothing Repaired ---------- Nothing Studied --------- None Alien Tech Used ----------------- None Achievements -------------- Nice Directions, Buddy There's More Where That Came From Uncivil War Challenges ------------ None Game ------ Seed CoolingEfficiencyHumpback Manual? 0 Play Time 00:53:12 Cumulative 76.9 hours Start 2025.10.25 @ 13:25:28 End 2025.10.25 @ 14:20:25 Sessions 1 Manual Loads 0 Difficulty Rogue Special Mode None Game No. 116 Rogue 116 Adventurer 0 Explorer 0 Win Type - Total 0 Types 0/0/0/0/0/0/0/0/0/0 Lore% 24 Gallery% 29 Achievement% 17 Wizard Run 0 Options --------- Layout 1 ASCII 0 Keyboard 0 Movement Arrows Keybinds 0 Fullscreen 1 Font 24/Smallcaps Map View 50x35 Zoom Use 0% Tactical HUD 1 Map Filters NONE Filters NONE Steam 1 RUN: 92017582-8750-40f7-9fca-0cc3c7b1f9fd